bitfinex-derivatives/quotes_ETHF0:USTF0_20250214
["timestamp","ask_amount","ask_price","bid_price","bid_amount"]
[1739574212684,0.00551724,2717.3,2717.0,3.2078]
[1739574212886,0.00551724,2717.3,2717.2,0.73586]
[1739574213691,0.74136724,2717.3,2717.1,2.694]
[1739574214390,0.74137724,2717.3,2717.0,3.9437]
[1739574214696,0.74137724,2717.3,2717.1,2.691]
[1739574214887,0.00551724,2717.3,2717.1,2.691]
[1739574215089,0.00551724,2717.3,2717.1,3.42689]
[1739574215287,0.74136724,2717.3,2717.1,3.0598]
[1739574215589,0.74135724,2717.3,2717.1,3.42688]
[1739574215783,0.00551724,2717.3,2717.1,2.691]
[1739574215986,0.00551724,2717.3,2717.1,3.0598]
[1739574215987,0.73586,2717.2,2717.1,3.0598]
[1739574216291,0.73586,2717.2,2717.1,2.691]
[1739574216693,0.00551724,2717.3,2716.9,20.7638]
[1739574216989,0.73592,2717.0,2716.9,23.4478]
[1739574217186,0.73587,2717.2,2717.0,0.73591]
[1739574217386,0.67581724,2717.3,2716.9,23.4478]
[1739574217588,0.00551724,2717.3,2717.2,0.73586]
[1739574217893,0.74136724,2717.3,2717.1,0.73588]
[1739574218094,0.73589,2717.2,2717.0,0.73591]
[1739574218290,0.73592,2717.0,2716.9,23.4478]
[1739574218481,0.00551724,2717.3,2716.9,24.18374]
[1739574218686,0.7359,2717.1,2716.9,24.18374]
[1739574218886,0.00551724,2717.3,2716.9,23.4478]
[1739574219389,0.73588,2717.2,2717.0,0.73591]
[1739574220390,0.00551724,2717.3,2717.0,0.73591]
[1739574220584,0.73586,2717.2,2717.0,0.73591]
[1739574220997,0.00551724,2717.3,2716.9,23.4478]
[1739574221199,0.74136724,2717.3,2717.1,0.73588]
[1739574221401,0.00551724,2717.3,2717.2,0.73586]
[1739574221696,0.74136724,2717.3,2716.9,23.4478]
[1739574221898,0.00551724,2717.3,2717.2,0.73586]
[1739574222598,0.74136724,2717.3,2717.1,0.73588]
[1739574223597,0.00551724,2717.3,2717.1,0.73588]
[1739574224091,0.00551724,2717.3,2716.9,23.4478]
[1739574224092,0.74136724,2717.3,2716.9,23.4478]
[1739574224298,0.74136724,2717.3,2717.0,0.73589]
[1739574224601,0.00551724,2717.3,2716.9,23.4478]
[1739574224802,0.74137724,2717.3,2717.0,0.73592]
[1739574224994,0.74137724,2717.3,2717.1,0.73588]
[1739574226199,0.00551724,2717.3,2716.9,21.49973]
[1739574226404,0.00551724,2717.3,2717.0,3.39391]
[1739574226708,0.00551724,2717.3,2717.2,0.73586]
[1739574226901,0.74135724,2717.3,2717.1,0.73587]
[1739574227296,0.00551724,2717.3,2717.1,0.73587]
[1739574227593,0.74136724,2717.3,2717.1,0.73587]
[1739574228605,0.00551724,2717.3,2717.2,0.73586]
[1739574229303,0.00551724,2717.3,2717.0,5.8658]
[1739574229504,0.74135724,2717.3,2717.1,0.73588]
[1739574229707,11.30512066,2717.2,2717.1,0.73588]
[1739574231204,11.30512066,2717.2,2717.0,6.6017]
[1739574231406,11.30512066,2717.2,2717.1,0.73589]
[1739574233002,11.30512066,2717.2,2717.1,2.641]
[1739574233198,12.04098066,2717.2,2717.1,2.641]
[1739574234008,11.30512066,2717.2,2717.1,3.37689]
[1739574234801,11.30512066,2717.2,2717.1,2.641]
[1739574235000,12.04098066,2717.2,2717.1,2.641]
[1739574235407,11.30512066,2717.2,2717.0,3.2078]
[1739574235612,0.73589,2717.1,2717.0,3.2078]
[1739574236912,0.73594,2717.0,2716.8,2.64551724]
[1739574237210,0.73594,2717.0,2716.9,0.73595]
[1739574237613,11.30512066,2717.2,2717.1,0.73589]
[1739574241111,12.04100066,2717.2,2717.0,3.94372]
[1739574241307,11.30512066,2717.2,2717.1,0.73589]
[1739574242114,11.3106379,2717.3,2717.1,0.73589]
[1739574242315,11.3106379,2717.3,2717.2,2.637]
[1739574242912,11.3106379,2717.3,2717.2,3.37286]
[1739574244403,11.3106379,2717.3,2717.2,2.637]
[1739574245117,11.3106379,2717.3,2717.2,3.37286]
[1739574245816,11.3106379,2717.3,2717.2,2.637]
[1739574246116,12.0464779,2717.3,2717.2,2.637]
[1739574248911,11.3106379,2717.3,2717.2,2.637]
[1739574249118,11.3106379,2717.3,2717.2,3.37286]
[1739574249818,11.3106379,2717.3,2717.2,2.637]
[1739574250021,0.73589,2717.1,2717.0,3.2078]
[1739574250208,0.73595,2716.9,2716.8,0.00551724]
[1739574250519,3.8997,2717.0,2716.2,3.2078]
[1739574250711,1.83987,2716.9,2716.2,6.56392]
[1739574251014,0.73611,2716.3,2716.2,3.2078]
[1739574251221,0.73603,2716.6,2716.0,20.396]
[1739574251416,0.6919,2716.2,2715.7,1.23905109]
[1739574251616,0.6919,2716.2,2715.6,0.3688]
[1739574251617,0.73624,2715.8,2715.6,0.3688]
[1739574252111,3.2078,2715.7,2715.2,14.42649755]
[1739574252311,0.73638,2715.3,2715.2,14.42649755]
[1739574252915,0.7359,2715.3,2715.2,15.16290755]
[1739574253115,3.19464779,2716.1,2715.2,20.82894534]
[1739574253313,3.2078,2716.3,2715.9,0.73622]
[1739574253508,7.24e-06,2715.9,2715.8,3.19464779]
[1739574253719,7.24e-06,2715.9,2715.8,9.78468779]
[1739574253919,3.2078,2716.9,2716.6,0.73602]
[1739574254111,3.2078,2716.9,2716.5,2.645]
[1739574254418,1.4585,2717.2,2716.7,3.2078]
[1739574254615,1.4585,2717.2,2716.5,0.7026]
[1739574254920,0.73607,2716.5,2716.1,3.2078]
[1739574255220,0.73604,2716.6,2716.1,2.65]
[1739574255422,0.73607,2716.5,2716.1,2.65]
[1739574255609,0.73613,2716.3,2716.1,2.65]
[1739574256008,1.4276,2716.5,2716.0,0.00551724]
[1739574256211,0.73616,2716.1,2716.0,0.00551724]
[1739574256420,0.73616,2716.1,2715.5,23.6078]
[1739574256421,3.19464779,2716.1,2715.5,20.4]
[1739574256616,6.40244779,2715.8,2715.1,3.2078]
[1739574256825,0.73634,2715.5,2715.1,3.2078]
[1739574257511,3.93080779,2716.1,2715.6,0.7363]
[1739574257717,0.00551724,2715.6,2715.5,0.73631]
[1739574257918,0.00551724,2715.6,2715.4,0.73634]
[1739574258120,0.00551724,2715.6,2715.3,2.651]
[1739574258424,0.74181724,2715.6,2715.2,2.651]
[1739574258611,0.73635,2715.5,2715.2,2.651]
[1739574258813,0.73634,2715.5,2715.2,2.651]
[1739574259016,0.00551724,2715.6,2715.2,2.651]
[1739574259216,0.00551724,2715.6,2715.3,0.73636]
[1739574260112,0.00551724,2715.6,2715.5,0.73632]
[1739574260317,0.00551724,2715.6,2715.4,7.21565473]
[1739574260519,0.00551724,2715.6,2715.5,0.73632]
[1739574261317,8.52928003,2716.3,2715.5,6.73632]
[1739574261536,8.52928003,2716.3,2716.0,3.2078]
[1739574261720,8.52928003,2716.3,2716.1,3.38515]
[1739574262026,8.52928003,2716.3,2716.2,0.73613]
[1739574263123,8.52928003,2716.3,2716.1,4.74400473]
[1739574263316,8.52928003,2716.3,2716.2,3.38413]
[1739574264425,6.50633003,2716.3,2716.2,9.38413]
[1739574264623,0.00551724,2716.5,2716.2,9.369]
[1739574264927,4.54339372,2717.1,2716.4,7.95173473]
[1739574265125,4.54339372,2717.1,2716.9,0.73594]
[1739574265316,4.54339372,2717.1,2717.0,6.59472]
[1739574265521,4.54339372,2717.1,2717.0,6.59372]
[1739574267624,21.2614646,2717.3,2717.2,0.73586]
[1739574267625,11.3106379,2717.3,2717.2,0.73586]
[1739574267824,11.3106379,2717.3,2717.0,5.8578]
[1739574268029,11.3106379,2717.3,2717.2,0.73586]
[1739574269320,11.3106379,2717.3,2717.2,2.645]
[1739574269728,11.3106379,2717.3,2717.2,3.38086]
[1739574270232,0.00551724,2717.3,2717.2,9.38086]
[1739574270633,0.00551724,2717.3,2717.2,3.38086]
[1739574270823,0.00551724,2717.3,2717.2,9.38086]
[1739574271025,14.04717185,2717.5,2717.2,8.645]
[1739574271231,9.9508267,2718.1,2718.0,0.73565]
[1739574271433,9.9508267,2718.1,2718.0,10.60130473]
[1739574272224,9.9508267,2718.1,2718.0,5.8568]
[1739574272430,9.9508267,2718.1,2718.0,2.649]
[1739574272633,9.9508267,2718.1,2718.0,10.60030473]
[1739574273441,0.00551724,2718.3,2718.0,3.94345]
[1739574273631,0.00551724,2718.3,2718.0,3.2078]
[1739574273829,0.00551724,2718.3,2718.1,2.652]
[1739574274033,0.00551724,2718.3,2718.2,0.73559]
[1739574274439,0.00551724,2718.3,2718.0,2.652]
[1739574274632,0.00551724,2718.3,2718.2,0.73559]
[1739574275325,7.24e-06,2718.3,2718.2,27.12959]
[1739574276937,0.7622,2719.1,2719.0,0.73538]
[1739574277132,0.7622,2719.1,2719.0,6.59418]
[1739574277535,0.7497,2719.6,2719.0,5.8588]
[1739574277733,0.73529,2719.4,2719.0,5.8588]
[1739574278047,0.73528,2719.4,2719.0,6.59417]
[1739574278427,0.00549631,2719.5,2719.0,6.59417]
[1739574278632,0.00549631,2719.5,2719.0,5.8588]
[1739574279136,0.00549631,2719.5,2719.2,0.73532]
[1739574279538,0.00549631,2719.5,2719.0,5.8588]
[1739574279734,0.73528,2719.4,2719.0,6.59417]
[1739574279935,0.00549631,2719.5,2719.0,6.59417]
[1739574280130,0.00549631,2719.5,2719.0,3.2078]
[1739574280433,0.00549631,2719.5,2719.0,5.8518]
[1739574280632,0.73528,2719.4,2719.0,6.58717]
[1739574280834,0.00549631,2719.5,2719.0,5.8518]
[1739574281039,0.74075631,2719.5,2719.1,0.73533]
[1739574281234,0.74075631,2719.5,2719.0,5.8518]
[1739574281235,0.00549631,2719.5,2719.0,5.8518]
[1739574281436,0.73535,2719.1,2719.0,3.2078]
[1739574281640,5.04601,2719.4,2718.9,0.00551724]
[1739574281843,0.73538,2719.0,2718.9,2.64551724]
[1739574282038,0.73533,2719.2,2718.9,3.38090724]
[1739574282243,0.7466,2719.3,2718.9,2.64551724]
[1739574282438,0.73538,2719.0,2718.9,0.00551724]
[1739574282735,0.73538,2719.0,2718.6,3.2078]
[1739574282736,3.2078,2719.0,2718.3,2.643]
[1739574282937,0.7917,2718.9,2718.3,2.643]
[1739574283133,1.52712,2718.9,2718.6,0.73547]
[1739574283329,3.2078,2719.0,2718.7,2.644]
[1739574283932,0.7917,2719.4,2718.7,2.644]
[1739574284145,0.7917,2719.4,2718.8,3.2078]
[1739574284340,1.52698,2719.4,2719.1,0.73532]
[1739574284548,0.73531,2719.3,2719.1,2.644]
[1739574285039,0.73532,2719.2,2719.1,2.644]
[1739574285236,0.73532,2719.2,2718.8,3.94322]
[1739574285237,0.7354,2718.9,2718.8,3.2078]
[1739574285436,0.73546,2718.7,2718.6,2.64851724]
[1739574286346,1.48166,2718.7,2718.6,2.64851724]
[1739574286540,0.7364,2718.8,2718.6,5.85631724]
[1739574286848,0.7364,2718.8,2718.5,2.644]
[1739574287042,0.73548,2718.6,2718.5,2.644]
[1739574287647,0.7364,2718.8,2718.3,3.2078]
[1739574287835,0.7355,2718.6,2718.4,0.73553]
[1739574288145,0.7364,2718.8,2718.4,3.37653]
[1739574288345,0.73546,2718.7,2718.4,3.37653]
[1739574288541,0.7364,2718.8,2718.3,3.21331724]
[1739574288842,0.7332,2718.6,2718.4,3.37452]
[1739574289048,0.7364,2718.8,2718.4,2.639]
[1739574289340,0.7364,2718.8,2718.6,3.2078]
[1739574289540,0.7364,2718.8,2718.6,3.94328]
[1739574289844,0.7364,2718.8,2718.6,3.2078]
[1739574290346,0.7364,2718.8,2718.6,3.94326]
[1739574290545,0.7364,2718.8,2718.7,0.73546]
[1739574291841,0.7364,2718.8,2718.6,3.2078]
[1739574292146,0.7364,2718.8,2718.6,3.94327]
[1739574292448,1.47185,2718.8,2718.6,3.2078]
[1739574292641,0.73546,2718.7,2718.6,3.2078]
[1739574292941,0.7364,2718.8,2718.6,2.637]
[1739574293139,1.49206,2718.7,2718.6,2.637]
[1739574293345,0.7364,2718.8,2718.6,6.58028]
[1739574293743,0.7364,2718.8,2718.6,5.8448]
[1739574293955,0.73546,2718.7,2718.6,2.637]
[1739574294147,0.7364,2718.8,2718.3,4.01337197]
[1739574294148,0.73551,2718.6,2718.5,2.636]
[1739574294341,0.7364,2718.8,2718.5,2.636]
[1739574294744,0.73546,2718.7,2718.6,0.368]
[1739574295343,0.7364,2718.8,2718.6,0.368]
[1739574296145,0.7364,2718.8,2718.6,1.10348]
[1739574296451,0.73544,2718.8,2718.6,0.368]
[1739574296748,2.62691,2719.2,2718.6,0.368]
[1739574296949,0.73539,2719.0,2718.7,0.73545]
[1739574297253,0.73537,2719.1,2718.7,0.73543]
[1739574297455,0.7886,2719.2,2718.7,0.73543]
[1739574297752,0.7886,2719.2,2718.6,0.368]
[1739574297753,0.73543,2718.9,2718.6,0.368]
[1739574297945,0.73543,2718.9,2718.6,1.10348]
[1739574298348,0.7886,2719.2,2718.8,0.73543]
[1739574298349,1.52394,2719.2,2718.8,0.73543]
[1739574298553,0.7886,2719.2,2718.9,2.63]
[1739574298752,0.73538,2719.0,2718.9,2.63]
[1739574299254,0.7886,2719.2,2718.9,2.63]
[1739574299451,0.7886,2719.2,2718.9,3.36539]
[1739574299452,0.73536,2719.1,2718.9,3.36539]
[1739574299859,0.7886,2719.2,2718.9,2.63]
[1739574300151,0.73538,2719.0,2718.9,2.63]
[1739574301247,0.73536,2719.1,2718.9,3.36539]
[1739574301448,0.73538,2719.0,2718.9,2.63]
[1739574302442,1.52394,2719.2,2719.0,0.73535]
[1739574302648,1.52394,2719.2,2718.9,2.63]
[1739574302848,0.7886,2719.2,2719.1,0.73535]
[1739574303159,0.73529,2719.4,2719.2,0.73532]
[1739574303352,0.00549631,2719.5,2719.3,2.615]
[1739574303862,0.00549631,2719.5,2719.4,0.73527]
[1739574304561,0.73527,2719.4,2719.3,2.615]
[1739574304760,0.00549631,2719.5,2719.3,2.615]
[1739574304957,0.74073631,2719.5,2719.3,3.35027]
[1739574305758,0.74073631,2719.5,2718.9,5.84636473]
[1739574305759,0.73539,2719.0,2718.8,0.29772331]
[1739574305961,0.73539,2719.0,2718.9,2.61]
[1739574306451,5.05143631,2719.5,2718.9,6.5532]
[1739574306452,0.7902,2719.2,2718.9,6.5532]
[1739574306651,3.21329631,2719.5,2718.9,5.8178]
[1739574306847,0.00549631,2719.5,2719.0,0.73537]
[1739574307056,1.84361631,2719.5,2718.9,5.8178]
[1739574307258,0.73538,2719.0,2718.9,2.61]
[1739574307659,3.98393836,2719.3,2718.5,0.368]
[1739574307962,0.73554,2718.4,2718.3,0.00551724]
[1739574308260,3.94334,2718.4,2718.3,0.00551724]
[1739574308560,0.7926,2718.6,2718.3,0.74107724]
[1739574308762,1.5281,2718.6,2718.3,0.00551724]
[1739574308958,0.7926,2718.6,2718.3,0.00551724]
[1739574309365,0.73554,2718.4,2718.3,0.00551724]
[1739574310454,0.7926,2718.6,2718.3,0.00551724]
[1739574310663,3.21329631,2719.5,2718.5,3.2078]
[1739574310856,4.76819631,2719.5,2718.5,3.2078]
[1739574311161,0.73533,2719.2,2718.5,3.2078]
[1739574311455,4.76819631,2719.5,2718.5,3.2078]
[1739574311456,4.76819631,2719.5,2718.9,0.73539]
[1739574311655,0.73531,2719.3,2719.0,3.34938]
[1739574311964,1.56039631,2719.5,2719.2,0.73531]
[1739574312263,0.81549631,2719.5,2719.1,0.7451]
[1739574312454,1.55075631,2719.5,2719.2,0.73532]
[1739574312655,1.55075631,2719.5,2719.1,1.48044]
[1739574313059,0.81549631,2719.5,2719.1,1.48044]
[1739574313365,0.73531,2719.3,2719.1,0.7451]
[1739574314350,0.81549631,2719.5,2718.8,3.2078]
[1739574314351,0.73539,2719.0,2718.8,3.2078]
[1739574314551,0.73532,2719.3,2718.9,3.3434]
[1739574314755,0.73533,2719.2,2718.8,5.8158]
[1739574314956,0.81549631,2719.5,2718.8,5.8158]
[1739574315158,0.7354,2718.9,2718.8,2.608]
[1739574315965,1.481,2718.9,2718.8,2.976]
[1739574316656,1.481,2718.9,2718.8,2.608]
[1739574317863,0.7471,2719.2,2718.8,2.608]
[1739574318158,14.88992721,2719.4,2718.8,2.608]
[1739574318462,15.62521721,2719.4,2719.2,0.73532]
[1739574318763,14.88992721,2719.4,2719.1,2.608]
[1739574318960,0.7353,2719.3,2719.1,3.34333]
[1739574319264,14.13782721,2719.4,2719.1,2.608]
[1739574319458,14.13782721,2719.4,2719.1,3.34335]
[1739574319664,14.87310721,2719.4,2719.1,3.34335]
[1739574319859,14.13782721,2719.4,2719.2,0.73532]
[1739574320162,14.13782721,2719.4,2719.1,5.8158]
[1739574320362,0.00549631,2719.5,2719.1,2.608]
[1739574320558,0.73531,2719.3,2719.1,2.608]
[1739574320860,0.80189631,2719.5,2719.1,2.608]
[1739574321064,0.73532,2719.2,2719.1,2.608]
[1739574322562,3.2078,2719.3,2718.6,20.383]
[1739574322860,0.73545,2718.8,2718.7,2.602]
[1739574323160,0.73546,2718.7,2718.6,20.383]
[1739574323570,0.73544,2718.8,2718.6,20.383]
[1739574323863,0.73544,2718.8,2718.3,0.00551724]
[1739574323864,0.73554,2718.4,2718.3,0.00551724]
[1739574324265,0.7357,2717.8,2717.5,0.368]
[1739574324462,0.7357,2717.9,2717.7,23.358]
[1739574324770,0.7357,2717.8,2717.7,20.383]
[1739574325461,0.74117724,2718.0,2717.7,21.11872]
[1739574325862,0.00551724,2718.0,2717.7,20.383]
[1739574326362,0.00551724,2718.0,2717.7,21.11872]
[1739574326665,0.00551724,2718.0,2717.7,20.383]
[1739574326856,0.00551724,2718.0,2717.9,0.73567]
[1739574327062,0.00551724,2718.0,2717.8,3.94349]
[1739574327367,0.00551724,2718.0,2717.9,4.73609514]
[1739574328564,12.79392005,2718.9,2717.9,10.00042514]
[1739574328767,12.79392005,2718.9,2718.2,4.00042514]
[1739574328966,0.73544,2718.8,2718.3,0.73555]
[1739574329270,12.79392005,2718.9,2718.4,2.605]
[1739574329569,0.73546,2718.7,2718.4,2.605]
[1739574329770,12.79943729,2718.9,2718.6,0.73547]
[1739574330063,12.79943729,2718.9,2718.4,5.8128]
[1739574330369,12.79943729,2718.9,2718.8,0.73543]
[1739574330570,0.00551724,2718.9,2718.8,3.33943]
[1739574330764,0.00551724,2718.9,2718.8,4.15123]
[1739574331164,0.00551724,2718.9,2718.8,3.4158]
[1739574331879,0.00551724,2718.9,2718.7,3.2078]
[1739574332171,0.00551724,2718.9,2718.8,2.601]
[1739574332963,0.00551724,2718.9,2718.3,3.2078]
[1739574333162,0.78421724,2718.9,2718.1,0.8118]
[1739574333371,0.78421724,2718.9,2718.2,2.599]
[1739574333372,0.73558,2718.3,2718.2,2.599]
[1739574335266,0.73556,2718.4,2718.2,2.599]
[1739574335576,3.2078,2718.7,2718.2,2.599]
[1739574335874,3.94327,2718.7,2718.4,0.73554]
[1739574336187,0.73549,2718.6,2718.3,0.73555]
[1739574336476,3.2078,2718.7,2718.2,2.599]
[1739574336674,3.94327,2718.7,2718.4,0.73554]
[1739574337074,3.94327,2718.7,2718.3,0.73555]
[1739574337270,3.2078,2718.7,2718.2,2.599]
[1739574337577,0.00551724,2718.9,2718.8,0.73543]
[1739574337770,0.00551724,2718.9,2718.8,2.602]
[1739574338171,0.74091724,2718.9,2718.8,2.602]
[1739574339080,0.00551724,2718.9,2718.8,2.602]
[1739574339472,0.00551724,2718.9,2718.8,3.33743]
[1739574340175,0.00551724,2718.9,2718.8,7.33785514]
[1739574341677,0.00551724,2718.9,2718.8,26.98742514]
[1739574341882,0.00551724,2718.9,2718.8,22.987]
[1739574342382,0.00551724,2718.9,2718.8,23.72243]
[1739574342979,0.00551724,2718.9,2718.8,20.385]
[1739574343180,0.74091724,2718.9,2718.8,22.979]
[1739574343378,0.00551724,2718.9,2718.8,22.979]
[1739574343779,0.74091724,2718.9,2718.8,22.979]
[1739574344182,0.74091724,2718.9,2718.8,20.385]
[1739574344483,0.74091724,2718.9,2718.8,22.978]
[1739574345883,0.00551724,2718.9,2718.8,22.978]
[1739574346082,0.74091724,2718.9,2718.8,22.978]
[1739574346289,0.74091724,2718.9,2718.8,2.593]
[1739574346589,0.73547,2718.7,2718.5,0.73549]
[1739574346892,0.74093724,2718.9,2718.7,0.73545]
[1739574347189,0.00551724,2718.9,2718.8,0.73543]
[1739574348288,0.73543,2718.8,2718.7,3.2078]
[1739574349493,0.00551724,2718.9,2718.7,3.2078]
[1739574349889,0.73543,2718.8,2718.7,3.2078]
[1739574350089,0.74093724,2718.9,2718.7,3.94324]
[1739574350290,0.73543,2718.8,2718.7,3.2078]
[1739574350883,0.73546,2718.7,2718.6,2.593]
[1739574352394,3.21331724,2718.9,2718.6,2.593]
[1739574352692,0.73543,2718.8,2718.6,2.593]
[1739574353085,0.73546,2718.7,2718.6,2.593]
[1739574353285,0.73544,2718.8,2718.6,3.32847]
[1739574353586,0.73545,2718.8,2718.6,2.593]
[1739574353791,0.73549,2718.6,2718.4,4.69373]
[1739574353988,0.7355,2718.6,2718.5,2.586]
[1739574354287,0.00551724,2718.9,2718.5,2.586]
[1739574354689,0.74092724,2718.9,2718.6,0.73547]
[1739574354887,0.74092724,2718.9,2718.6,1.10347]
[1739574355390,0.00551724,2718.9,2718.7,3.2078]
[1739574355995,0.74093724,2718.9,2718.7,3.2078]
[1739574356294,0.00551724,2718.9,2718.7,3.2078]
[1739574356493,0.74093724,2718.9,2718.7,3.2078]
[1739574357193,0.00551724,2718.9,2718.7,3.2078]
[1739574357392,0.73543,2718.8,2718.7,3.2078]
[1739574357791,0.74093724,2718.9,2718.7,3.2078]
[1739574357986,0.73543,2718.8,2718.7,3.2078]
[1739574359790,0.74093724,2718.9,2718.7,3.31245]
[1739574360098,0.74092724,2718.9,2718.7,3.31245]
[1739574360493,0.73543,2718.8,2718.7,2.577]
[1739574360798,0.00551724,2718.9,2718.6,0.368]
[1739574360799,0.73546,2718.7,2718.6,0.368]
[1739574361094,0.73546,2718.7,2718.6,2.944]
[1739574361293,0.00551724,2718.9,2718.6,2.944]
[1739574361598,0.73546,2718.7,2718.6,0.368]
[1739574361792,0.73546,2718.7,2718.6,2.944]
[1739574362493,0.73554,2718.4,2718.3,20.385]
[1739574362698,0.73554,2718.4,2718.3,22.959]
[1739574363092,0.73552,2718.5,2718.3,23.69456]
[1739574363496,3.2078,2718.7,2718.3,22.959]
[1739574363794,3.2078,2718.7,2718.3,26.5348]
[1739574363997,0.00551724,2718.9,2718.6,3.2078]
[1739574364195,0.00551724,2718.9,2718.8,3.9265993]
[1739574364397,0.00551724,2718.9,2718.8,0.73543]
[1739574364795,0.00551724,2718.9,2718.8,3.9265993]
[1739574366397,0.00551724,2718.9,2718.8,9.9265993]
[1739574366796,0.00551724,2718.9,2718.8,3.9265993]
[1739574367703,0.00551724,2718.9,2718.8,4.73227906]
[1739574368096,0.00551724,2718.9,2718.8,11.73028746]
[1739574368291,0.00551724,2718.9,2718.8,10.73227906]
[1739574368700,0.00551724,2718.9,2718.8,4.73227906]
[1739574371301,0.00551724,2718.9,2718.8,6.0280053]
[1739574371507,0.00551724,2718.9,2718.8,5.0299969]
[1739574371699,0.00551724,2718.9,2718.8,6.0280053]
[1739574371900,0.00551724,2718.9,2718.8,5.0299969]
[1739574373099,16.00172005,2719.8,2719.6,0.73521]
[1739574373298,12.79392005,2719.8,2719.7,2.561]
[1739574373497,12.79392005,2719.8,2719.7,3.29619]
[1739574374207,12.79392005,2719.8,2719.7,2.561]
[1739574374906,12.79392005,2719.8,2719.7,3.66419]
[1739574376203,0.00551724,2720.0,2719.9,0.73513]
[1739574376504,0.00551724,2720.0,2719.9,3.94293]
[1739574377105,0.00551724,2720.0,2719.9,7.93977906]
[1739574382407,7.24e-06,2720.0,2719.9,13.93977906]
[1739574382608,7.24e-06,2720.0,2719.9,20.04577906]
[1739574383812,0.7953,2720.9,2720.8,0.73489]
[1739574384020,0.7953,2720.9,2720.8,3.28889]
[1739574386512,0.77869631,2721.1,2720.8,2.554]
[1739574387011,0.77869631,2721.1,2720.9,0.73485]
[1739574387212,0.77869631,2721.1,2721.0,0.73484]
[1739574388013,0.77869631,2721.1,2720.9,3.94265]
[1739574388617,0.77869631,2721.1,2720.9,3.94264]
[1739574389518,0.77869631,2721.1,2720.9,3.2078]
[1739574389918,0.77869631,2721.1,2721.0,2.541]
[1739574390615,1.51350631,2721.1,2721.0,2.541]
[1739574391018,0.77869631,2721.1,2721.0,3.27584]
[1739574391825,0.77869631,2721.1,2720.8,3.2078]
[1739574392130,0.73487,2720.9,2720.7,21.10791]
[1739574392422,0.73487,2720.9,2720.8,2.539]
[1739574392623,0.77869631,2721.1,2720.8,2.539]
[1739574392823,0.73486,2720.9,2720.8,2.539]
[1739574393013,0.73486,2721.0,2720.8,3.27389]
[1739574393213,0.73486,2720.9,2720.8,3.27389]
[1739574393721,0.73485,2721.0,2720.8,3.27389]
[1739574394122,1.51351631,2721.1,2721.0,0.73484]
[1739574394316,0.77869631,2721.1,2721.0,0.73484]
[1739574394625,0.77869631,2721.1,2721.0,0.368]
[1739574394626,1.51351631,2721.1,2721.0,0.368]
[1739574394823,9.98649631,2721.1,2720.7,20.373]
[1739574395020,0.73489,2720.8,2720.7,20.373]
[1739574395631,3.94269,2720.8,2720.7,20.373]
[1739574396013,3.94269,2720.8,2720.1,2.538]
[1739574396014,9.2078,2720.8,2720.1,2.538]
[1739574396327,0.73508,2720.1,2720.0,0.73509]
[1739574396519,3.2078,2720.4,2719.9,2.538]
[1739574396826,0.7605,2720.0,2719.9,3.27313]
[1739574397826,0.7605,2720.0,2719.9,0.73513]
[1739574398127,0.7605,2720.0,2719.9,3.27013]
[1739574398523,1.49561,2720.0,2719.9,2.535]
[1739574399018,0.73513,2719.9,2719.7,20.37]
[1739574399322,0.73516,2719.8,2719.7,20.37]
[1739574399527,3.94296,2719.8,2719.7,20.37]
[1739574399739,0.73521,2719.6,2719.5,0.00551724]
[1739574402529,0.7353,2719.3,2719.2,2.904]
[1739574403030,3.2078,2719.5,2719.2,2.904]
[1739574403823,3.2078,2719.5,2719.4,0.73527]
[1739574404424,3.94305,2719.5,2719.2,6.82464124]
[1739574404629,0.00551724,2719.6,2719.4,0.73526]
[1739574404825,0.00551724,2719.6,2719.2,6.08933124]
[1739574405030,0.73524,2719.5,2719.2,6.82464124]
[1739574405227,0.73524,2719.5,2719.2,6.82463124]
[1739574405431,0.74074724,2719.6,2719.2,6.82463124]
[1739574405835,0.00551724,2719.6,2719.2,6.08933124]
[1739574406033,0.73527,2719.5,2719.2,6.08933124]
[1739574406928,0.74074724,2719.6,2719.2,6.82464124]
[1739574407125,0.74074724,2719.6,2719.2,6.08933124]
[1739574407327,0.00551724,2719.6,2719.5,3.92057124]
[1739574407534,0.00551724,2719.6,2719.5,3.18533124]
[1739574408636,0.7353,2719.3,2719.2,6.08933124]
[1739574409338,0.73527,2719.4,2719.2,6.08933124]
[1739574409727,0.7353,2719.3,2719.2,6.08933124]
[1739574410336,0.7345,2719.5,2719.2,6.08933124]
[1739574410837,0.7353,2719.3,2719.2,6.08933124]
[1739574411033,0.7353,2719.3,2719.2,2.904]
[1739574411627,3.9423,2719.5,2719.1,0.37351724]
[1739574411835,0.73532,2719.2,2719.1,0.00551724]
[1739574412032,0.73532,2719.2,2719.1,0.37351724]
[1739574412432,0.73532,2719.2,2719.1,0.00551724]
[1739574412634,0.73532,2719.2,2719.1,0.37351724]
[1739574412930,3.94312,2719.2,2719.1,0.00551724]
[1739574416233,0.73532,2719.2,2719.1,0.00551724]
[1739574416632,3.94312,2719.2,2719.1,0.00551724]
[1739574416935,3.2078,2719.2,2719.1,0.00551724]
[1739574417136,0.7345,2719.5,2719.4,0.73527]
[1739574417333,0.7345,2719.5,2719.2,2.527]
[1739574417535,1.46976,2719.5,2719.4,0.73527]
[1739574417737,0.73526,2719.5,2719.4,0.73527]
[1739574418046,0.73524,2719.5,2719.4,0.73525]
[1739574418233,0.74074724,2719.6,2719.2,5.71233124]
[1739574418539,0.73524,2719.5,2719.3,0.7353]
[1739574419041,0.00551724,2719.6,2719.2,5.71233124]
[1739574419243,0.73528,2719.4,2719.2,6.44764124]
[1739574419540,0.00551724,2719.6,2719.2,5.71233124]
[1739574419740,0.00551724,2719.6,2719.5,0.73524]